[Event "GER-ch Youth U12 2019"]
[Site "Willingen"]
[Date "2019.06.12"]
[Round "5.4"]
[White "Zweigait, Leon"]
[Black "Metzdorf, Matteo"]
[Result "0-1"]
[ECO "D30"]
[WhiteElo "1474"]
[BlackElo "1859"]
[Annotator "NA"]
[PlyCount "49"]
[EventDate "2019.06.07"]
[EventType "swiss"]
[EventRounds "9"]
[EventCountry "GER"]
[SourceTitle "playchess.com"]
[Source "ChessBase"]
[SourceQuality "1"]
[TimeControl "40/4500+30:900+30"]

1. Nf3 {[%emt 0:00:00]} Nf6 {[%emt 0:00:00]} 2. d4 {[%emt 0:00:00]} e6 {[%emt 0:00:00]} 3. c4 {[%emt 0:00:00]} d5 {[%emt 0:00:00]} 4. Bg5 {[%emt 0:00:00]} Be7 {[%emt 0:00:00]} 5. e3 {[%emt 0:00:00]} h6 {[%emt 0:00:00]} 6. Bxf6 {[%emt 0:00:00]} Bxf6 {[%emt 0:00:00]} 7. Qc2 {[%emt 0:00:00]} O-O {[%emt 0:00:00]} 8. h4 {[%emt 0:00:00]} Re8 {[%emt 0:10:08]} 9. Nc3 {[%emt 0:00:00]} b6 {[%emt 0:21:06]} 10. g4 {[%emt 0:00:00]} g6 {[%emt 0:04:38]} 11. cxd5 {[%emt 0:00:00]} exd5 {[%emt 0:01:08]} 12. g5 {[%emt 0:01:18]} hxg5 {[%emt 0:10:08]} 13. hxg5 {[%emt 0:00:25]} Bg7 {[%emt 0:01:00]} 14. Rd1 {[%emt 0:03:07]} Bf5 {[%emt 0:06:16]} 15. Bd3 {[%emt 0:00:16]} Bxd3 {[%emt 0:00:52]} 16. Qxd3 {[%emt 0:00:15]} c6 {[%emt 0:02:01]} 17. Ke2 {[%emt 0:01:49]} Qd6 {[%emt 0:03:55]} 18. Rh4 {[%emt 0:04:19]} Nd7 {[%emt 0:01:37]} 19. Rdh1 {[%emt 0:00:26]} Kf8 {[%emt 0:06:17]} 20. Nd2 {[%emt 0:04:39]} Rad8 {[%emt 0:02:43]} 21. f4 {[%emt 0:00:59]} c5 {[%emt 0:05:49]} 22. Nf3 {[%emt 0:04:19]} cxd4 {[%emt 0:01:41]} 23. Nxd4 {[%emt 0:03:49]} Nc5 {[%emt 0:00:54]} 24. Qd2 {[%emt 0:01:04]} Ne4 {[%emt 0:00:51]} 25. Nxe4 {[%emt 0:00:13] normal} 0-1

[Event "GER-ch Youth U12 2019"]
[Site "Willingen"]
[Date "2019.06.12"]
[Round "5.5"]
[White "Tomasjan, Samuel"]
[Black "Stork, Christopher"]
[Result "1/2-1/2"]
[ECO "B40"]
[WhiteElo "1476"]
[BlackElo "1817"]
[Annotator "NA"]
[PlyCount "53"]
[EventDate "2019.06.07"]
[EventType "swiss"]
[EventRounds "9"]
[EventCountry "GER"]
[SourceTitle "playchess.com"]
[Source "ChessBase"]
[SourceQuality "1"]
[TimeControl "40/4500+30:900+30"]

1. e4 {[%emt 0:00:00]} c5 {[%emt 0:00:00]} 2. Nf3 {[%emt 0:00:00]} e6 {[%emt 0:00:00]} 3. d4 {[%emt 0:00:00]} cxd4 {[%emt 0:00:00]} 4. Nxd4 {[%emt 0:00:00]} Nf6 {[%emt 0:00:00]} 5. Nc3 {[%emt 0:00:00]} Nc6 {[%emt 0:00:00]} 6. Nxc6 {[%emt 0:00:00]} bxc6 {[%emt 0:00:00]} 7. e5 {[%emt 0:00:00]} Nd5 {[%emt 0:00:00]} 8. Nxd5 {[%emt 0:00:00]} exd5 {[%emt 0:00:00]} 9. Bf4 {[%emt 0:05:34]} Bc5 {[%emt 0:00:00]} 10. c4 {[%emt 0:06:42]} Qb6 {[%emt 0:00:00]} 11. Qc2 {[%emt 0:00:20]} Bb7 {[%emt 0:00:00]} 12. cxd5 {[%emt 0:07:28]} cxd5 {[%emt 0:00:00]} 13. Bd3 {[%emt 0:00:44]} Bb4+ {[%emt 0:01:34]} 14. Bd2 {[%emt 0:02:22]} Rc8 {[%emt 0:00:53]} 15. Qd1 {[%emt 0:00:36]} O-O {[%emt 0:01:51]} 16. O-O {[%emt 0:05:05]} Rfe8 {[%emt 0:02:08]} 17. Bxb4 {[%emt 0:08:47]} Qxb4 {[%emt 0:00:12]} 18. f4 {[%emt 0:02:04]} Bc6 {[%emt 0:02:19]} 19. b3 {[%emt 0:02:18]} d6 {[%emt 0:00:56]} 20. exd6 {[%emt 0:03:53]} Qxd6 {[%emt 0:00:18]} 21. f5 {[%emt 0:05:34]} f6 {[%emt 0:01:32]} 22. Rf3 {[%emt 0:04:01]} Re7 {[%emt 0:01:24]} 23. Rh3 {[%emt 0:06:38]} Rce8 {[%emt 0:01:51]} 24. Qh5 {[%emt 0:02:09]} h6 {[%emt 0:00:29]} 25. Rg3 {[%emt 0:10:00]} Qb4 {[%emt 0:05:24]} 26. Rf1 {[%emt 0:06:54]} Qd2 {[%emt 0:02:51]} 27. h3 {[%emt 0:03:02] normal} 1/2-1/2

[Event "GER-ch Youth U12 2019"]
[Site "Willingen"]
[Date "2019.06.12"]
[Round "5.6"]
[White "Woltmann, Peter"]
[Black "Bungarten, Jona"]
[Result "1-0"]
[ECO "C55"]
[WhiteElo "1471"]
[BlackElo "1642"]
[Annotator "NA"]
[PlyCount "49"]
[EventDate "2019.06.07"]
[EventType "swiss"]
[EventRounds "9"]
[EventCountry "GER"]
[SourceTitle "playchess.com"]
[Source "ChessBase"]
[SourceQuality "1"]
[TimeControl "40/4500+30:900+30"]

1. e4 {[%emt 0:00:00]} e5 {[%emt 0:00:00]} 2. Nf3 {[%emt 0:00:00]} Nc6 {[%emt 0:00:00]} 3. d4 {[%emt 0:00:00]} exd4 {[%emt 0:00:00]} 4. Bc4 {[%emt 0:00:00]} Nf6 {[%emt 0:00:00]} 5. e5 {[%emt 0:00:00]} d5 {[%emt 0:00:00]} 6. Bb5 {[%emt 0:00:00]} Ne4 {[%emt 0:00:00]} 7. Nxd4 {[%emt 0:00:00]} Bc5 {[%emt 0:00:00]} 8. Be3 {[%emt 0:00:00]} O-O {[%emt 0:00:00]} 9. Nxc6 bxc6 {[%emt 0:00:00]} 10. Bxc5 {[%emt 0:00:00]} Nxc5 {[%emt 0:00:00]} 11. Bxc6 {[%emt 0:00:00]} Rb8 {[%emt 0:00:00]} 12. Qxd5 {[%emt 0:00:00]} Qxd5 {[%emt 0:00:00]} 13. Bxd5 {[%emt 0:00:00]} Rxb2 {[%emt 0:00:00]} 14. Na3 {[%emt 0:00:00]} Rd8 {[%emt 0:00:00]} 15. O-O-O {[%emt 0:00:00]} Rb6 {[%emt 0:00:00]} 16. Bxf7+ {[%emt 0:00:00]} Kxf7 {[%emt 0:02:05]} 17. Rxd8 {[%emt 0:00:00]} Be6 {[%emt 0:00:52]} 18. f4 {[%emt 0:00:00]} c6 {[%emt 0:02:40]} 19. Rf1 {[%emt 0:00:00]} Ra6 {[%emt 0:07:11]} 20. Nb1 {[%emt 0:01:03]} Rxa2 {[%emt 0:00:20]} 21. f5 {[%emt 0:00:42]} Bd5 {[%emt 0:00:18]} 22. e6+ {[%emt 0:02:27]} Ke7 {[%emt 0:04:58]} 23. Rg8 {[%emt 0:01:43]} Be4 {[%emt 0:10:36]} 24. Rxg7+ {[%emt 0:01:16]} Ke8 {[%emt 0:00:49]} 25. f6 {[%emt 0:02:37] normal} 1-0

[Event "GER-ch Youth U12 2019"]
[Site "Willingen"]
[Date "2019.06.12"]
[Round "5.7"]
[White "Ohler, Julius"]
[Black "Deuer, Marius"]
[Result "1/2-1/2"]
[ECO "C44"]
[WhiteElo "1837"]
[BlackElo "1961"]
[Annotator "NA"]
[PlyCount "85"]
[EventDate "2019.06.07"]
[EventType "swiss"]
[EventRounds "9"]
[EventCountry "GER"]
[SourceTitle "playchess.com"]
[Source "ChessBase"]
[SourceQuality "1"]
[TimeControl "40/4500+30:900+30"]

1. e4 {[%emt 0:00:00]} e5 {[%emt 0:00:00]} 2. Nf3 {[%emt 0:00:00]} Nc6 {[%emt 0:00:00]} 3. c3 Nf6 {[%emt 0:00:00]} 4. d4 {[%emt 0:00:00]} exd4 {[%emt 0:00:27]} 5. e5 {[%emt 0:00:00]} Nd5 6. cxd4 d6 {[%emt 0:05:31]} 7. Bb5 {[%emt 0:00:00]} Be7 {[%emt 0:06:26]} 8. Qc2 {[%emt 0:00:00]} Bd7 {[%emt 0:02:13]} 9. Qb3 {[%emt 0:07:07]} Nb6 {[%emt 0:03:33]} 10. Nc3 {[%emt 0:04:30]} d5 {[%emt 0:06:22]} 11. O-O {[%emt 0:04:29]} Bg4 {[%emt 0:03:57]} 12. Be3 {[%emt 0:05:55]} O-O {[%emt 0:10:45]} 13. h3 {[%emt 0:01:12]} Bxf3 {[%emt 0:03:00]} 14. gxf3 {[%emt 0:00:14]} a6 {[%emt 0:01:25]} 15. Be2 {[%emt 0:07:33]} Qd7 {[%emt 0:04:50]} 16. Kh2 {[%emt 0:01:11]} f5 {[%emt 0:02:49]} 17. f4 {[%emt 0:00:36]} Qe6 {[%emt 0:00:53]} 18. Bf3 {[%emt 0:07:00]} Rad8 {[%emt 0:02:30]} 19. Rac1 {[%emt 0:10:11]} Na5 {[%emt 0:03:24]} 20. Qc2 {[%emt 0:01:33]} Nac4 {[%emt 0:02:45]} 21. b3 {[%emt 0:07:31]} Nxe3 {[%emt 0:00:59]} 22. fxe3 {[%emt 0:00:13]} c6 {[%emt 0:01:22]} 23. Rf2 {[%emt 0:02:29]} Kf7 {[%emt 0:04:00]} 24. Rg2 {[%emt 0:03:18]} g6 {[%emt 0:02:12]} 25. Qd3 {[%emt 0:04:22]} Ke8 {[%emt 0:01:56]} 26. Na4 {[%emt 0:02:08]} Nxa4 {[%emt 0:03:17]} 27. bxa4 {[%emt 0:00:07]} Rd7 {[%emt 0:03:04]} 28. Rb2 {[%emt 0:01:06]} Rf7 {[%emt 0:00:55]} 29. Rcb1 {[%emt 0:00:58]} Bd8 {[%emt 0:00:27]} 30. Rb3 {[%emt 0:04:28]} h5 {[%emt 0:01:27]} 31. Rg1 {[%emt 0:00:53]} Rg7 {[%emt 0:00:23]} 32. Rb2 {[%emt 0:00:51]} Kf8 {[%emt 0:00:23]} 33. Rbg2 {[%emt 0:01:58]} Kg8 {[%emt 0:01:13]} 34. Rb2 {[%emt 0:01:47]} Kh7 {[%emt 0:00:36]} 35. Rgb1 {[%emt 0:01:20]} Kh6 {[%emt 0:00:56]} 36. Rg2 {[%emt 0:02:36]} g5 {[%emt 0:03:01]} 37. fxg5+ {[%emt 0:00:14]} Rxg5 {[%emt 0:00:08]} 38. Rbg1 {[%emt 0:00:12]} Rdg7 {[%emt 0:00:37]} 39. Qe2 {[%emt 0:00:27]} Qg8 {[%emt 0:00:43]} 40. Qb2 {[%emt 0:01:47]} h4 {[%emt 0:01:45]} 41. Qf2 {[%emt 0:17:20]} Rg3 {[%emt 0:17:25]} 42. Rxg3 {[%emt 0:01:08]} hxg3+ {[%emt 0:00:47]} 43. Rxg3 {[%emt 0:00:19] normal} 1/2-1/2

[Event "GER-ch Youth U12 2019"]
[Site "Willingen"]
[Date "2019.06.12"]
[Round "5.8"]
[White "Rempe, Jonas"]
[Black "Hagner, Bennet"]
[Result "0-1"]
[ECO "C91"]
[WhiteElo "1781"]
[BlackElo "1900"]
[Annotator "NA"]
[PlyCount "91"]
[EventDate "2019.06.07"]
[EventType "swiss"]
[EventRounds "9"]
[EventCountry "GER"]
[SourceTitle "playchess.com"]
[Source "ChessBase"]
[SourceQuality "1"]
[TimeControl "40/4500+30:900+30"]

1. e4 {[%emt 0:00:00]} e5 {[%emt 0:00:00]} 2. Nf3 {[%emt 0:00:00]} Nc6 {[%emt 0:00:00]} 3. Bb5 {[%emt 0:00:00]} a6 {[%emt 0:00:00]} 4. Ba4 {[%emt 0:00:00]} Nf6 {[%emt 0:00:00]} 5. O-O {[%emt 0:00:00]} Be7 {[%emt 0:00:00]} 6. Re1 {[%emt 0:00:00]} b5 {[%emt 0:00:00]} 7. Bb3 {[%emt 0:00:00]} d6 {[%emt 0:00:00]} 8. c3 {[%emt 0:00:00]} O-O {[%emt 0:00:00]} 9. d4 {[%emt 0:00:00]} Bb7 {[%emt 0:00:00]} 10. Nbd2 {[%emt 0:00:00]} Re8 {[%emt 0:00:00]} 11. Nf1 {[%emt 0:00:00]} Bf8 {[%emt 0:00:00]} 12. Ng3 {[%emt 0:00:00]} g6 {[%emt 0:00:00]} 13. Ng5 {[%emt 0:30:47]} Re7 {[%emt 0:00:00]} 14. Nf3 {[%emt 0:00:34]} Bg7 {[%emt 0:06:17]} 15. Bc2 {[%emt 0:08:19]} exd4 {[%emt 0:16:19]} 16. cxd4 {[%emt 0:02:09]} Qe8 {[%emt 0:04:44]} 17. a3 {[%emt 0:12:59]} Na5 {[%emt 0:08:30]} 18. Bg5 {[%emt 0:01:15]} h6 {[%emt 0:01:16]} 19. Bxf6 {[%emt 0:04:00]} Bxf6 {[%emt 0:00:02]} 20. Qd2 {[%emt 0:00:50]} Nc6 {[%emt 0:03:56]} 21. Qxh6 {[%emt 0:03:00]} Nxd4 {[%emt 0:01:12]} 22. Nxd4 {[%emt 0:00:31]} Bxd4 {[%emt 0:00:01]} 23. Rad1 {[%emt 0:03:51]} Bg7 {[%emt 0:03:13]} 24. Qg5 {[%emt 0:01:04]} Re5 {[%emt 0:01:03]} 25. Qh4 {[%emt 0:01:04]} Qe7 {[%emt 0:04:09]} 26. Qg4 {[%emt 0:00:25]} Rg5 {[%emt 0:03:22]} 27. Qe2 {[%emt 0:02:23]} Bxb2 {[%emt 0:04:46]} 28. f4 {[%emt 0:01:27]} Rc5 {[%emt 0:00:52]} 29. Bb3 {[%emt 0:00:11]} Bg7 {[%emt 0:03:33]} 30. Qg4 {[%emt 0:00:40]} Qf6 {[%emt 0:01:10]} 31. e5 {[%emt 0:00:42]} dxe5 {[%emt 0:00:40]} 32. Rd7 {[%emt 0:00:51]} Rf8 {[%emt 0:03:55]} 33. fxe5 {[%emt 0:05:30]} Rxe5 {[%emt 0:01:01]} 34. Rf1 {[%emt 0:00:51]} Qb6+ {[%emt 0:02:08]} 35. Kh1 {[%emt 0:00:49]} Qc6 {[%emt 0:07:56]} 36. Qh3 {[%emt 0:02:44]} Bf6 {[%emt 0:04:50]} 37. Bxf7+ {[%emt 0:05:08]} Rxf7 {[%emt 0:00:20]} 38. Rxf7 {[%emt 0:00:05]} Qxg2+ {[%emt 0:00:46]} 39. Qxg2 Bxg2+ {[%emt 0:00:08]} 40. Kxg2 {[%emt 0:00:21]} Kxf7 {[%emt 0:00:01]} 41. Rc1 {[%emt 0:00:00]} c5 {[%emt 0:00:00]} 42. Kf3 {[%emt 0:00:00]} Re3+ {[%emt 0:00:00]} 43. Kg2 {[%emt 0:00:00]} Bd4 {[%emt 0:00:00]} 44. Rc2 {[%emt 0:00:00]} Rxa3 {[%emt 0:00:00]} 45. Ne4 {[%emt 0:00:00]} c4 {[%emt 0:00:00]} 46. h3 {[%emt 0:00:00] normal} 0-1

[Event "GER-ch Youth U12 2019"]
[Site "Willingen"]
[Date "2019.06.12"]
[Round "5.9"]
[White "Schwartz, Oliver"]
[Black "Kempe, Caius Emilian"]
[Result "0-1"]
[ECO "B27"]
[WhiteElo "1616"]
[BlackElo "1766"]
[Annotator "NA"]
[PlyCount "32"]
[EventDate "2019.06.07"]
[EventType "swiss"]
[EventRounds "9"]
[EventCountry "GER"]
[SourceTitle "playchess.com"]
[Source "ChessBase"]
[SourceQuality "1"]
[TimeControl "40/4500+30:900+30"]

1. e4 {[%emt 0:00:00]} c5 {[%emt 0:00:00]} 2. Nf3 {[%emt 0:00:00]} g6 {[%emt 0:00:00]} 3. d4 {[%emt 0:00:00]} cxd4 {[%emt 0:00:00]} 4. Nxd4 {[%emt 0:00:00]} Nf6 {[%emt 0:00:00]} 5. Nc3 {[%emt 0:00:00]} Nc6 {[%emt 0:00:00]} 6. Be3 {[%emt 0:00:00]} Bg7 {[%emt 0:00:00]} 7. f3 {[%emt 0:00:00]} O-O {[%emt 0:00:00]} 8. Qd2 {[%emt 0:00:00]} d5 {[%emt 0:00:00]} 9. exd5 {[%emt 0:03:52]} Nxd5 {[%emt 0:00:00]} 10. Nxc6 {[%emt 0:00:40]} bxc6 {[%emt 0:00:00]} 11. O-O-O {[%emt 0:01:03]} e6 {[%emt 0:00:00]} 12. h4 {[%emt 0:04:00]} Qe7 {[%emt 0:01:23]} 13. Bd4 {[%emt 0:02:59]} e5 {[%emt 0:02:38]} 14. Bf2 {[%emt 0:04:23]} Be6 {[%emt 0:01:44]} 15. Kb1 {[%emt 0:02:48]} Rab8 {[%emt 0:05:47]} 16. h5 {[%emt 0:11:47]} Qb4 {[%emt 0:01:29] normal} 0-1

[Event "GER-ch Youth U12 2019"]
[Site "Willingen"]
[Date "2019.06.12"]
[Round "5.10"]
[White "Malchereck, Zion"]
[Black "Fuchs, Florian"]
[Result "0-1"]
[ECO "C01"]
[WhiteElo "1438"]
[BlackElo "2235"]
[Annotator "NA"]
[PlyCount "95"]
[EventDate "2019.06.07"]
[EventType "swiss"]
[EventRounds "9"]
[EventCountry "GER"]
[SourceTitle "playchess.com"]
[Source "ChessBase"]
[SourceQuality "1"]
[TimeControl "40/4500+30:900+30"]

1. e4 {[%emt 0:00:00]} e6 {[%emt 0:00:00]} 2. d4 {[%emt 0:00:00]} d5 {[%emt 0:00:00]} 3. exd5 {[%emt 0:00:00]} exd5 {[%emt 0:00:00]} 4. Nf3 {[%emt 0:00:00]} Bd6 {[%emt 0:00:00]} 5. c4 {[%emt 0:00:00]} c6 {[%emt 0:00:00]} 6. c5 {[%emt 0:00:00]} Be7 {[%emt 0:00:00]} 7. Bd3 {[%emt 0:00:00]} Bg4 {[%emt 0:00:00]} 8. h3 {[%emt 0:00:00]} Bh5 {[%emt 0:00:00]} 9. Be3 {[%emt 0:00:00]} b6 {[%emt 0:00:00]} 10. O-O {[%emt 0:00:00]} bxc5 {[%emt 0:00:00]} 11. dxc5 {[%emt 0:00:00]} Nd7 {[%emt 0:00:00]} 12. Re1 {[%emt 0:00:00]} Ngf6 {[%emt 0:00:00]} 13. Nbd2 {[%emt 0:00:00]} O-O {[%emt 0:00:00]} 14. b4 {[%emt 0:00:00]} a5 {[%emt 0:00:44]} 15. a3 {[%emt 0:00:00]} Re8 {[%emt 0:06:47]} 16. Qc2 {[%emt 0:02:30]} Bg6 {[%emt 0:01:53]} 17. Bxg6 {[%emt 0:03:07]} hxg6 {[%emt 0:00:06]} 18. Nd4 {[%emt 0:00:22]} Qc7 {[%emt 0:03:24]} 19. N2b3 {[%emt 0:03:32]} axb4 {[%emt 0:04:13]} 20. axb4 {[%emt 0:00:42]} Nh5 {[%emt 0:16:55]} 21. Qd2 {[%emt 0:14:42]} Bf6 {[%emt 0:02:12]} 22. Rec1 {[%emt 0:05:18]} Bxd4 {[%emt 0:03:01]} 23. Bxd4 {[%emt 0:02:16]} Nf4 {[%emt 0:02:29]} 24. Be3 {[%emt 0:01:09]} Ne6 {[%emt 0:00:13]} 25. Na5 {[%emt 0:04:51]} Rab8 {[%emt 0:10:31]} 26. Rab1 {[%emt 0:09:21]} Rb5 {[%emt 0:00:15]} 27. Nb3 {[%emt 0:11:46]} Reb8 {[%emt 0:13:38]} 28. Nd4 {[%emt 0:00:44]} Nxd4 {[%emt 0:00:50]} 29. Bxd4 {[%emt 0:00:30]} Qb7 {[%emt 0:00:56]} 30. Qc3 {[%emt 0:00:26]} f6 {[%emt 0:01:01]} 31. Qd3 {[%emt 0:00:51]} Rxb4 {[%emt 0:01:50]} 32. Rxb4 Qxb4 {[%emt 0:01:18]} 33. Bc3 {[%emt 0:01:33]} Qxc5 {[%emt 0:03:13]} 34. Bd2 {[%emt 0:00:53]} Qd6 {[%emt 0:02:15]} 35. Qxg6 c5 {[%emt 0:03:52]} 36. Bh6 {[%emt 0:01:57]} Qe7 {[%emt 0:00:14]} 37. Bf4 {[%emt 0:01:41]} Rb4 {[%emt 0:01:16]} 38. Bg3 {[%emt 0:08:26]} Qe4 {[%emt 0:02:47]} 39. Qh5 {[%emt 0:01:03]} c4 {[%emt 0:00:38]} 40. Ra1 {[%emt 0:01:05]} d4 {[%emt 0:03:35]} 41. Bd6 {[%emt 0:17:31]} Rb1+ {[%emt 0:15:27]} 42. Rxb1 {[%emt 0:00:20]} Qxb1+ {[%emt 0:00:05]} 43. Kh2 {[%emt 0:00:10]} Qe4 {[%emt 0:00:14]} 44. Qb5 {[%emt 0:01:23]} Qe6 {[%emt 0:00:24]} 45. Bf4 {[%emt 0:00:56]} c3 {[%emt 0:03:29]} 46. Kg3 {[%emt 0:00:27]} Ne5 {[%emt 0:00:00]} 47. Qc5 {[%emt 0:00:00] normal} Qc4 {[%emt 0:00:00]} 48. Qe7 0-1

[Event "GER-ch Youth U12 2019"]
[Site "Willingen"]
[Date "2019.06.12"]
[Round "5.11"]
[White "Heinrich, John"]
[Black "Reichmann, Felix"]
[Result "0-1"]
[ECO "B38"]
[WhiteElo "1695"]
[BlackElo "1725"]
[Annotator "NA"]
[PlyCount "100"]
[EventDate "2019.06.07"]
[EventType "swiss"]
[EventRounds "9"]
[EventCountry "GER"]
[SourceTitle "playchess.com"]
[Source "ChessBase"]
[SourceQuality "1"]
[TimeControl "40/4500+30:900+30"]

1. e4 {[%emt 0:00:00]} c5 {[%emt 0:00:00]} 2. Nf3 {[%emt 0:00:00]} Nc6 {[%emt 0:00:00]} 3. d4 {[%emt 0:00:00]} cxd4 {[%emt 0:00:00]} 4. Nxd4 {[%emt 0:00:00]} g6 {[%emt 0:00:00]} 5. c4 {[%emt 0:00:00]} Bg7 {[%emt 0:00:00]} 6. Be3 {[%emt 0:00:00]} Qb6 {[%emt 0:00:00]} 7. Nb3 {[%emt 0:00:00]} Qc7 {[%emt 0:00:00]} 8. Nc3 {[%emt 0:00:00]} Bxc3+ {[%emt 0:00:00]} 9. bxc3 {[%emt 0:00:00]} Nf6 {[%emt 0:00:00]} 10. f3 {[%emt 0:00:00]} O-O {[%emt 0:00:00]} 11. Be2 {[%emt 0:02:06]} d6 {[%emt 0:00:00]} 12. Nd4 {[%emt 0:03:45]} b6 {[%emt 0:00:00]} 13. h4 {[%emt 0:03:32]} Nh5 {[%emt 0:00:00]} 14. Kf2 {[%emt 0:02:15]} Nf6 {[%emt 0:00:00]} 15. Bg5 {[%emt 0:06:55]} Ne5 {[%emt 0:00:00]} 16. h5 {[%emt 0:17:49]} Qc5 {[%emt 0:04:27]} 17. Be3 {[%emt 0:05:24]} Nxc4 {[%emt 0:04:07]} 18. Bxc4 {[%emt 0:00:57]} Qxc4 {[%emt 0:00:06]} 19. hxg6 {[%emt 0:00:54]} fxg6 {[%emt 0:00:08]} 20. Kg1 {[%emt 0:02:29]} Bd7 {[%emt 0:07:08]} 21. Qe1 {[%emt 0:01:39]} Rac8 {[%emt 0:00:34]} 22. Rc1 {[%emt 0:04:05]} Qxa2 {[%emt 0:03:56]} 23. Qh4 {[%emt 0:02:33]} Rf7 {[%emt 0:04:09]} 24. Qg3 {[%emt 0:03:59]} Qa5 {[%emt 0:02:11]} 25. Qe1 {[%emt 0:04:36]} Nh5 {[%emt 0:07:19]} 26. Ne2 {[%emt 0:04:01]} e5 {[%emt 0:00:34]} 27. Qd2 {[%emt 0:00:53]} Bb5 {[%emt 0:00:23]} 28. Kf2 {[%emt 0:02:57]} Bxe2 {[%emt 0:01:09]} 29. Qxe2 {[%emt 0:00:15]} Nf6 {[%emt 0:03:57]} 30. Kg3 {[%emt 0:01:04]} d5 {[%emt 0:01:26]} 31. exd5 {[%emt 0:01:05]} Nxd5 {[%emt 0:02:42]} 32. Bd2 {[%emt 0:00:40]} Ne7 {[%emt 0:00:59]} 33. Ra1 {[%emt 0:01:36]} Nf5+ {[%emt 0:00:10]} 34. Kh2 {[%emt 0:00:37]} Qd5 {[%emt 0:01:03]} 35. Rhd1 {[%emt 0:01:24]} Qc5 {[%emt 0:06:05]} 36. Rac1 {[%emt 0:00:53]} Kg7 {[%emt 0:00:30]} 37. Qe4 {[%emt 0:00:49]} h6 {[%emt 0:03:25]} 38. Re1 {[%emt 0:02:10]} Re7 {[%emt 0:00:28]} 39. Qe2 {[%emt 0:04:19]} Qc4 {[%emt 0:02:10]} 40. Qe4 {[%emt 0:01:27]} a5 {[%emt 0:10:12]} 41. Rb1 {[%emt 0:15:54]} Qxe4 {[%emt 0:20:36]} 42. Rxe4 {[%emt 0:03:01]} Nd6 {[%emt 0:00:14]} 43. Re2 {[%emt 0:01:15]} b5 {[%emt 0:00:39]} 44. Kg3 {[%emt 0:03:57]} a4 {[%emt 0:01:34]} 45. Kf2 {[%emt 0:00:32]} Kf6 {[%emt 0:01:07]} 46. Be1 {[%emt 0:00:00]} g5 {[%emt 0:00:00]} 47. g4 {[%emt 0:00:00]} Rc4 {[%emt 0:00:00]} 48. Kg3 {[%emt 0:00:00]} Ke6 {[%emt 0:00:00]} 49. Ra1 {[%emt 0:00:00]} Rf7 {[%emt 0:00:00] normal} 50. Bd2 {[%emt 0:00:00]} Rf6 {[%emt 0:00:00] normal} 0-1

[Event "GER-ch Youth U12 2019"]
[Site "Willingen"]
[Date "2019.06.12"]
[Round "5.12"]
[White "Hecht, Jonas Christian"]
[Black "Schreidl, Michael"]
[Result "1-0"]
[ECO "A17"]
[WhiteElo "1726"]
[BlackElo "1586"]
[Annotator "NA"]
[PlyCount "57"]
[EventDate "2019.06.07"]
[EventType "swiss"]
[EventRounds "9"]
[EventCountry "GER"]
[SourceTitle "playchess.com"]
[Source "ChessBase"]
[SourceQuality "1"]
[TimeControl "40/4500+30:900+30"]

1. c4 {[%emt 0:00:00]} e6 {[%emt 0:00:00]} 2. Nc3 {[%emt 0:00:00]} Nf6 {[%emt 0:00:00]} 3. g3 {[%emt 0:00:00]} d5 {[%emt 0:00:00]} 4. d4 {[%emt 0:00:00]} c6 {[%emt 0:00:00]} 5. Bg2 {[%emt 0:00:00]} Be7 {[%emt 0:00:00]} 6. Nf3 {[%emt 0:00:00]} Nbd7 {[%emt 0:00:00]} 7. O-O {[%emt 0:00:00]} O-O {[%emt 0:00:00]} 8. b3 {[%emt 0:00:00]} Re8 {[%emt 0:00:00]} 9. Bb2 {[%emt 0:00:00]} Rb8 {[%emt 0:04:09]} 10. Qc2 {[%emt 0:00:53]} Bd6 {[%emt 0:05:05]} 11. Rad1 {[%emt 0:02:46]} Qe7 {[%emt 0:08:08]} 12. c5 {[%emt 0:07:33]} Bc7 {[%emt 0:00:11]} 13. e4 {[%emt 0:00:26]} dxe4 {[%emt 0:03:58]} 14. Nxe4 {[%emt 0:00:58]} Nxe4 {[%emt 0:00:21]} 15. Qxe4 {[%emt 0:00:12]} Nf6 {[%emt 0:00:09]} 16. Qc2 {[%emt 0:04:48]} Nd5 {[%emt 0:02:49]} 17. Rfe1 {[%emt 0:03:32]} Ba5 {[%emt 0:08:54]} 18. Re2 {[%emt 0:02:09]} Nb4 {[%emt 0:03:20]} 19. Qd2 {[%emt 0:04:10]} b6 {[%emt 0:04:54]} 20. a3 {[%emt 0:05:10]} Ba6 {[%emt 0:01:42]} 21. axb4 {[%emt 0:00:55]} Bxe2 {[%emt 0:00:08]} 22. Qxe2 {[%emt 0:00:04]} Bxb4 {[%emt 0:00:28]} 23. Ne5 {[%emt 0:00:30]} Rbc8 {[%emt 0:07:51]} 24. Nxc6 {[%emt 0:00:29]} Rxc6 {[%emt 0:00:09]} 25. Bxc6 {[%emt 0:00:17]} Rc8 {[%emt 0:00:16]} 26. Be4 {[%emt 0:01:05]} bxc5 {[%emt 0:00:23]} 27. dxc5 {[%emt 0:00:39]} Bxc5 {[%emt 0:01:16]} 28. Rc1 {[%emt 0:04:30]} Qd8 {[%emt 0:01:23]} 29. Qh5 {[%emt 0:04:58] normal} 1-0

[Event "GER-ch Youth U12 2019"]
[Site "Willingen"]
[Date "2019.06.12"]
[Round "5.13"]
[White "Breitkopf-Lazar, Patrick-Robert"]
[Black "Bolz, Jannis"]
[Result "1-0"]
[ECO "C50"]
[WhiteElo "1659"]
[BlackElo "1618"]
[Annotator "NA"]
[PlyCount "65"]
[EventDate "2019.06.07"]
[EventType "swiss"]
[EventRounds "9"]
[EventCountry "GER"]
[SourceTitle "playchess.com"]
[Source "ChessBase"]
[SourceQuality "1"]
[TimeControl "40/4500+30:900+30"]

1. e4 {[%emt 0:00:00]} e5 {[%emt 0:00:00]} 2. Nf3 {[%emt 0:00:00]} Nc6 {[%emt 0:00:00]} 3. Bc4 {[%emt 0:00:00]} Bc5 {[%emt 0:00:00]} 4. O-O {[%emt 0:00:00]} Nf6 {[%emt 0:00:00]} 5. d3 {[%emt 0:00:00]} h6 {[%emt 0:00:00]} 6. c3 {[%emt 0:00:00]} d6 {[%emt 0:00:00]} 7. Nbd2 {[%emt 0:00:00]} a6 {[%emt 0:00:00]} 8. Bb3 {[%emt 0:00:00]} Ba7 {[%emt 0:00:00]} 9. Re1 {[%emt 0:00:00]} Be6 {[%emt 0:00:00]} 10. Nf1 {[%emt 0:00:00]} Qd7 {[%emt 0:00:00]} 11. Be3 {[%emt 0:00:00]} Bxb3 {[%emt 0:00:00]} 12. Qxb3 {[%emt 0:00:00]} O-O {[%emt 0:00:00]} 13. Bxa7 {[%emt 0:00:00]} Rxa7 {[%emt 0:00:00]} 14. d4 {[%emt 0:01:51]} Re8 {[%emt 0:10:17]} 15. Ng3 {[%emt 0:06:04]} Raa8 {[%emt 0:01:46]} 16. Rad1 {[%emt 0:03:08]} b5 {[%emt 0:02:51]} 17. Qc2 {[%emt 0:12:19]} Qg4 {[%emt 0:06:54]} 18. h3 {[%emt 0:01:21]} Qg6 {[%emt 0:05:24]} 19. b3 {[%emt 0:06:56]} Nh5 {[%emt 0:11:57]} 20. Nxh5 {[%emt 0:03:53]} Qxh5 {[%emt 0:00:08]} 21. d5 {[%emt 0:04:55]} Ne7 {[%emt 0:00:30]} 22. c4 {[%emt 0:03:25]} Rec8 {[%emt 0:01:41]} 23. Qd3 {[%emt 0:05:58]} b4 {[%emt 0:00:58]} 24. Nd2 {[%emt 0:03:46]} Ng6 {[%emt 0:02:02]} 25. Qg3 {[%emt 0:05:53]} Nf4 {[%emt 0:00:46]} 26. Nf3 {[%emt 0:04:03]} Rf8 {[%emt 0:04:20]} 27. Qg4 {[%emt 0:01:27]} f5 {[%emt 0:03:03]} 28. Qxh5 {[%emt 0:00:44]} Nxh5 {[%emt 0:00:09]} 29. Nd2 {[%emt 0:01:09]} Nf4 {[%emt 0:01:51]} 30. exf5 {[%emt 0:01:05]} Rxf5 {[%emt 0:00:07]} 31. Ne4 {[%emt 0:00:08]} Raf8 {[%emt 0:00:45]} 32. f3 {[%emt 0:02:16] normal} R5f7 {[%emt 0:03:17]} 33. Rd2 {[%emt 0:01:47] normal} 1-0